[Event "Late-Titled-Tuesday-Blitz-December-26-2023"]
[Site "Chess.com"]
[Date "2023.12.26"]
[Round "8"]
[White "Sacbutt"]
[Black "DCacheiro"]
[Result "0-1"]
[WhiteElo "2367"]
[BlackElo "2574"]
[TimeControl "180+1"]
[EndTime "15:28:18 PST"]
[Termination "DCacheiro won by resignation"]

1. e4 {[%clk 0:03:00.9]} 1... e5 {[%clk 0:02:59.8]} 2. Nf3 {[%clk 0:03:01]} 2...
Nc6 {[%clk 0:03:00]} 3. Bc4 {[%clk 0:03:01]} 3... Nf6 {[%clk 0:02:59.9]} 4. d3
{[%clk 0:03:01]} 4... Bc5 {[%clk 0:03:00]} 5. c3 {[%clk 0:03:01.3]} 5... d6
{[%clk 0:03:00.3]} 6. O-O {[%clk 0:03:00.8]} 6... a5 {[%clk 0:02:59.5]} 7. Bb3
{[%clk 0:02:58.9]} 7... O-O {[%clk 0:02:57.8]} 8. Nbd2 {[%clk 0:02:58.5]} 8...
Be6 {[%clk 0:02:57.7]} 9. h3 {[%clk 0:02:54.7]} 9... Ba7 {[%clk 0:02:55.8]} 10.
Re1 {[%clk 0:02:54.5]} 10... Bxb3 {[%clk 0:02:50.1]} 11. Qxb3 {[%clk 0:02:47.5]}
11... a4 {[%clk 0:02:49.5]} 12. Qb5 {[%clk 0:02:24.3]} 12... Bc5 {[%clk
0:02:23.1]} 13. b4 {[%clk 0:01:55.9]} 13... axb3 {[%clk 0:01:57.6]} 14. Nxb3
{[%clk 0:01:52.7]} 14... Bb6 {[%clk 0:01:57]} 15. d4 {[%clk 0:01:33.4]} 15...
Re8 {[%clk 0:01:52.1]} 16. d5 {[%clk 0:01:26.5]} 16... Ne7 {[%clk 0:01:46.7]}
17. Be3 {[%clk 0:01:14.8]} 17... Bxe3 {[%clk 0:01:32.9]} 18. Rxe3 {[%clk
0:01:15.7]} 18... Qd7 {[%clk 0:01:28.2]} 19. Qd3 {[%clk 0:00:53.5]} 19... Ng6
{[%clk 0:01:25]} 20. c4 {[%clk 0:00:52.1]} 20... Nf4 {[%clk 0:01:17.3]} 21. Qc2
{[%clk 0:00:51.8]} 21... b6 {[%clk 0:01:07.8]} 22. Ne1 {[%clk 0:00:50.9]} 22...
Ra7 {[%clk 0:00:51.8]} 23. Nd3 {[%clk 0:00:44.6]} 23... Nxd3 {[%clk 0:00:51.3]}
24. Qxd3 {[%clk 0:00:43.1]} 24... Rea8 {[%clk 0:00:50.9]} 25. Re2 {[%clk
0:00:40.1]} 25... Nh5 {[%clk 0:00:48.7]} 26. Rb2 {[%clk 0:00:35.8]} 26... Nf4
{[%clk 0:00:46.7]} 27. Qd2 {[%clk 0:00:28.1]} 27... Ra4 {[%clk 0:00:39.3]} 28.
Qc2 {[%clk 0:00:26.5]} 28... Qe7 {[%clk 0:00:32.7]} 29. Kh2 {[%clk 0:00:22.5]}
29... Qd7 {[%clk 0:00:26.1]} 30. Nc1 {[%clk 0:00:17.7]} 30... h6 {[%clk
0:00:24]} 31. Nd3 {[%clk 0:00:16.5]} 31... Nxd3 {[%clk 0:00:23.8]} 32. Qxd3
{[%clk 0:00:16.4]} 32... Ra3 {[%clk 0:00:24.4]} 33. Qe2 {[%clk 0:00:13.1]} 33...
Qa4 {[%clk 0:00:20.6]} 34. Qc2 {[%clk 0:00:10]} 34... Qxc2 {[%clk 0:00:18.1]}
35. Rxc2 {[%clk 0:00:10.9]} 35... R8a4 {[%clk 0:00:17]} 36. f3 {[%clk
0:00:10.6]} 36... Rd3 {[%clk 0:00:16.7]} 37. Kg1 {[%clk 0:00:10.1]} 37... Raa3
{[%clk 0:00:15.8]} 38. Kf2 {[%clk 0:00:10.2]} 38... Rdc3 {[%clk 0:00:15.3]} 39.
Rac1 {[%clk 0:00:10.4]} 39... Rxa2 {[%clk 0:00:13.5]} 40. Rxa2 {[%clk
0:00:10.6]} 40... Rxc1 {[%clk 0:00:13.8]} 41. Ra8+ {[%clk 0:00:09.5]} 41... Kh7
{[%clk 0:00:13.2]} 42. Ra4 {[%clk 0:00:09.5]} 42... Kg6 {[%clk 0:00:11.8]} 43.
g4 {[%clk 0:00:07.3]} 43... Rc2+ {[%clk 0:00:11.6]} 44. Kg3 {[%clk 0:00:07.6]}
44... h5 {[%clk 0:00:11.9]} 45. h4 {[%clk 0:00:07.7]} 45... hxg4 {[%clk
0:00:11.8]} 46. Kxg4 {[%clk 0:00:07.9]} 46... f6 {[%clk 0:00:11.5]} 47. h5+
{[%clk 0:00:07.4]} 47... Kh6 {[%clk 0:00:11.8]} 48. Kf5 {[%clk 0:00:07.5]} 48...
Kxh5 {[%clk 0:00:09.5]} 49. Ra8 {[%clk 0:00:07]} 49... Kh4 {[%clk 0:00:07.8]}
50. Kg6 {[%clk 0:00:05.6]} 50... Rxc4 {[%clk 0:00:06.1]} 51. Kxg7 {[%clk
0:00:05.4]} 51... Kg3 {[%clk 0:00:06.7]} 52. Kxf6 {[%clk 0:00:05.8]} 52... Kxf3
{[%clk 0:00:07.4]} 53. Ke6 {[%clk 0:00:05.9]} 53... Kxe4 {[%clk 0:00:08]} 54.
Rc8 {[%clk 0:00:04.8]} 54... Rc5 {[%clk 0:00:08.5]} 55. Kf6 {[%clk 0:00:02.7]}
55... b5 {[%clk 0:00:09.1]} 56. Rb8 {[%clk 0:00:02.8]} 56... Kxd5 {[%clk
0:00:09.5]} 57. Kf5 {[%clk 0:00:02.7]} 57... e4 {[%clk 0:00:10.1]} 58. Kf4
{[%clk 0:00:03.1]} 58... Kd4 {[%clk 0:00:10.5]} 59. Re8 {[%clk 0:00:02.1]} 59...
Re5 {[%clk 0:00:11.2]} 60. Rb8 {[%clk 0:00:02.1]} 60... e3 {[%clk 0:00:11.3]}
61. Ra8 {[%clk 0:00:02.2]} 61... e2 {[%clk 0:00:11.7]} 62. Ra1 {[%clk
0:00:02.1]} 62... e1=Q {[%clk 0:00:12]} 0-1

[Event "Late-Titled-Tuesday-Blitz-December-26-2023"]
[Site "Chess.com"]
[Date "2023.12.26"]
[Round "8"]
[White "Camilla_Lee"]
[Black "Rodalquilar"]
[Result "1-0"]
[WhiteElo "2613"]
[BlackElo "2748"]
[TimeControl "180+1"]
[EndTime "15:28:27 PST"]
[Termination "Camilla_Lee won on time"]

1. e4 {[%clk 0:02:59.8]} 1... d5 {[%clk 0:03:00.2]} 2. exd5 {[%clk 0:02:55.2]}
2... Qxd5 {[%clk 0:03:01.1]} 3. Nc3 {[%clk 0:02:53.1]} 3... Qa5 {[%clk 0:03:01]}
4. d4 {[%clk 0:02:51.8]} 4... Nf6 {[%clk 0:03:01.3]} 5. Nf3 {[%clk 0:02:47.2]}
5... Bf5 {[%clk 0:03:01.4]} 6. Bd2 {[%clk 0:02:39.9]} 6... e6 {[%clk 0:02:53.2]}
7. Nb5 {[%clk 0:02:12.2]} 7... Qb6 {[%clk 0:02:52.7]} 8. a4 {[%clk 0:02:02.6]}
8... c6 {[%clk 0:02:52.6]} 9. a5 {[%clk 0:01:57.3]} 9... Qd8 {[%clk 0:02:52.8]}
10. Na3 {[%clk 0:01:49.4]} 10... Be7 {[%clk 0:02:45.5]} 11. Nc4 {[%clk
0:01:29.9]} 11... O-O {[%clk 0:02:44.2]} 12. c3 {[%clk 0:01:26.8]} 12... Nbd7
{[%clk 0:02:40.6]} 13. Be2 {[%clk 0:01:25.4]} 13... c5 {[%clk 0:02:34.3]} 14.
O-O {[%clk 0:01:24.3]} 14... Rc8 {[%clk 0:02:31.7]} 15. Nfe5 {[%clk 0:01:12.9]}
15... cxd4 {[%clk 0:02:27.7]} 16. cxd4 {[%clk 0:01:10.7]} 16... Ne4 {[%clk
0:01:58.7]} 17. Be3 {[%clk 0:00:48.9]} 17... Nxe5 {[%clk 0:01:42.5]} 18. Nxe5
{[%clk 0:00:45]} 18... Bb4 {[%clk 0:01:22.6]} 19. Qa4 {[%clk 0:00:43.6]} 19...
Bd2 {[%clk 0:01:15.2]} 20. a6 {[%clk 0:00:41.6]} 20... bxa6 {[%clk 0:00:52]} 21.
Qxa6 {[%clk 0:00:36.2]} 21... Bxe3 {[%clk 0:00:49.1]} 22. fxe3 {[%clk
0:00:37.1]} 22... Qg5 {[%clk 0:00:49.1]} 23. Qa3 {[%clk 0:00:27.8]} 23... Rc2
{[%clk 0:00:44.4]} 24. Bf3 {[%clk 0:00:13.2]} 24... Nd2 {[%clk 0:00:22]} 25. Rf2
{[%clk 0:00:13.3]} 25... Rfc8 {[%clk 0:00:22.2]} 26. Re1 {[%clk 0:00:04.5]}
26... Rc1 {[%clk 0:00:15.2]} 27. Re2 {[%clk 0:00:03.5]} 27... Qh4 {[%clk
0:00:08.1]} 28. g3 {[%clk 0:00:01.7]} 28... Nxf3+ {[%clk 0:00:08.4]} 29. Nxf3
{[%clk 0:00:01.6]} 29... Qe4 {[%clk 0:00:08.9]} 30. Rxc1 {[%clk 0:00:01.2]}
30... Rxc1+ {[%clk 0:00:08.7]} 31. Kf2 {[%clk 0:00:01.9]} 31... Bg4 {[%clk
0:00:07]} 32. Ne1 {[%clk 0:00:02.1]} 32... Bxe2 {[%clk 0:00:05.1]} 33. Qxa7
{[%clk 0:00:02.8]} 33... Rc8 {[%clk 0:00:04.9]} 34. Kxe2 {[%clk 0:00:03.3]}
34... Qc6 {[%clk 0:00:05]} 35. Qa3 {[%clk 0:00:02.8]} 35... Qb5+ {[%clk
0:00:05.1]} 36. Nd3 {[%clk 0:00:03]} 36... Qh5+ {[%clk 0:00:04.9]} 37. Kd2
{[%clk 0:00:03.3]} 37... Qxh2+ {[%clk 0:00:05.5]} 38. Kd1 {[%clk 0:00:03.7]}
38... Qc2+ {[%clk 0:00:05.6]} 39. Ke1 {[%clk 0:00:03.8]} 39... h6 {[%clk
0:00:06.3]} 40. Nf2 {[%clk 0:00:02.9]} 40... Qc1+ {[%clk 0:00:06.1]} 41. Ke2
{[%clk 0:00:03.4]} 41... Rc2+ {[%clk 0:00:06.3]} 42. Kf3 {[%clk 0:00:04]} 42...
Qf1 {[%clk 0:00:05.7]} 43. Qa8+ {[%clk 0:00:03.3]} 43... Kh7 {[%clk 0:00:04.3]}
44. Qe4+ {[%clk 0:00:04.2]} 44... g6 {[%clk 0:00:03.2]} 45. Qxc2 {[%clk
0:00:05.1]} 45... h5 {[%clk 0:00:03.7]} 46. Qe2 {[%clk 0:00:05.4]} 46... Qb1
{[%clk 0:00:03.4]} 47. e4 {[%clk 0:00:05.6]} 47... Kg7 {[%clk 0:00:03]} 48. Kg2
{[%clk 0:00:06.2]} 48... Qa2 {[%clk 0:00:03]} 49. Nd3 {[%clk 0:00:05.9]} 49...
Qc4 {[%clk 0:00:03]} 50. Qe3 {[%clk 0:00:06.2]} 50... Qc2+ {[%clk 0:00:03.4]}
51. Kf3 {[%clk 0:00:05.4]} 51... Qd1+ {[%clk 0:00:03.4]} 52. Qe2 {[%clk
0:00:05.4]} 52... Qh1+ {[%clk 0:00:03.4]} 53. Ke3 {[%clk 0:00:06]} 53... Qg1+
{[%clk 0:00:03]} 54. Qf2 {[%clk 0:00:05.3]} 54... Qb1 {[%clk 0:00:03]} 55. b4
{[%clk 0:00:05.2]} 55... Qb3 {[%clk 0:00:02.8]} 56. Qb2 {[%clk 0:00:05.1]} 56...
Qd1 {[%clk 0:00:02.4]} 57. b5 {[%clk 0:00:04.9]} 57... Qg1+ {[%clk 0:00:02.4]}
58. Kd2 {[%clk 0:00:04.9]} 58... Qg2+ {[%clk 0:00:02.1]} 59. Kc3 {[%clk
0:00:05.3]} 59... Qxe4 {[%clk 0:00:02.5]} 60. b6 {[%clk 0:00:04.9]} 60... Qc6+
{[%clk 0:00:02.9]} 61. Nc5 {[%clk 0:00:05]} 61... e5 {[%clk 0:00:03.1]} 62. b7
{[%clk 0:00:04.8]} 62... exd4+ {[%clk 0:00:03.7]} 63. Kc4 {[%clk 0:00:04.2]} 1-0

[Event "Late-Titled-Tuesday-Blitz-December-26-2023"]
[Site "Chess.com"]
[Date "2023.12.26"]
[Round "8"]
[White "TST2014"]
[Black "MightyGMpretender"]
[Result "0-1"]
[WhiteElo "2588"]
[BlackElo "2750"]
[TimeControl "180+1"]
[EndTime "15:28:29 PST"]
[Termination "MightyGMpretender won on time"]

1. d4 {[%clk 0:02:58.9]} 1... g6 {[%clk 0:03:00.9]} 2. c4 {[%clk 0:02:58.1]}
2... Bg7 {[%clk 0:03:01.3]} 3. Nf3 {[%clk 0:02:58.4]} 3... d6 {[%clk 0:03:01.4]}
4. Nc3 {[%clk 0:02:58.8]} 4... c5 {[%clk 0:03:02]} 5. dxc5 {[%clk 0:02:56.5]}
5... Bxc3+ {[%clk 0:03:00.2]} 6. bxc3 {[%clk 0:02:56.2]} 6... dxc5 {[%clk
0:03:01.1]} 7. Qb3 {[%clk 0:02:49]} 7... Nc6 {[%clk 0:02:57.2]} 8. Bf4 {[%clk
0:02:41.2]} 8... Nf6 {[%clk 0:02:56.9]} 9. e3 {[%clk 0:02:38.6]} 9... O-O {[%clk
0:02:56.1]} 10. Be2 {[%clk 0:02:35.8]} 10... Qa5 {[%clk 0:02:56.1]} 11. O-O
{[%clk 0:02:33.3]} 11... b6 {[%clk 0:02:56]} 12. Ne5 {[%clk 0:02:29.1]} 12...
Nxe5 {[%clk 0:02:52.1]} 13. Bxe5 {[%clk 0:02:30]} 13... Bd7 {[%clk 0:02:50.3]}
14. Bf3 {[%clk 0:02:26.1]} 14... Rad8 {[%clk 0:02:48.4]} 15. Bc7 {[%clk
0:02:15.7]} 15... Rc8 {[%clk 0:02:48]} 16. Be5 {[%clk 0:02:14.7]} 16... Rfd8
{[%clk 0:02:47.9]} 17. a4 {[%clk 0:02:11.7]} 17... Qa6 {[%clk 0:02:47.3]} 18. a5
{[%clk 0:02:09.2]} 18... b5 {[%clk 0:02:45.4]} 19. Rfb1 {[%clk 0:02:02]} 19...
bxc4 {[%clk 0:02:36.5]} 20. Qb7 {[%clk 0:02:00.8]} 20... Qe6 {[%clk 0:02:37.2]}
21. Bc7 {[%clk 0:01:57.4]} 21... Re8 {[%clk 0:02:23.5]} 22. Qxa7 {[%clk
0:01:55.7]} 22... Nd5 {[%clk 0:02:24]} 23. Rb6 {[%clk 0:01:43.4]} 23... Rxc7
{[%clk 0:02:08.5]} 24. Qxc7 {[%clk 0:01:25.3]} 24... Nxc7 {[%clk 0:02:06.1]} 25.
Rxe6 {[%clk 0:01:24.3]} 25... fxe6 {[%clk 0:01:50.4]} 26. Bb7 {[%clk 0:01:21.2]}
26... Bc8 {[%clk 0:01:46.8]} 27. Bc6 {[%clk 0:01:10.8]} 27... Rd8 {[%clk
0:01:41.7]} 28. h4 {[%clk 0:01:07.6]} 28... Rd6 {[%clk 0:01:40.8]} 29. Bf3
{[%clk 0:01:06]} 29... Ba6 {[%clk 0:01:33.2]} 30. Rb1 {[%clk 0:01:03.6]} 30...
Nb5 {[%clk 0:01:27.3]} 31. Bb7 {[%clk 0:00:55.6]} 31... Nxc3 {[%clk 0:01:18.6]}
32. Rb2 {[%clk 0:00:52]} 32... Nd1 {[%clk 0:01:11.7]} 33. Rb1 {[%clk 0:00:47.4]}
33... Bxb7 {[%clk 0:01:02.7]} 34. Rxb7 {[%clk 0:00:46]} 34... c3 {[%clk
0:01:03.3]} 35. Rc7 {[%clk 0:00:45]} 35... Nb2 {[%clk 0:00:54.1]} 36. Rxc5
{[%clk 0:00:43.1]} 36... Ra6 {[%clk 0:00:54]} 37. Rxc3 {[%clk 0:00:42.1]} 37...
Rxa5 {[%clk 0:00:52.9]} 38. Rc8+ {[%clk 0:00:41.2]} 38... Kf7 {[%clk 0:00:52.1]}
39. Rh8 {[%clk 0:00:41]} 39... h5 {[%clk 0:00:48.4]} 40. Rh7+ {[%clk 0:00:39.1]}
40... Kf8 {[%clk 0:00:46.5]} 41. Rh8+ {[%clk 0:00:38.6]} 41... Kg7 {[%clk
0:00:46.8]} 42. Rb8 {[%clk 0:00:36.8]} 42... Ra1+ {[%clk 0:00:46]} 43. Kh2
{[%clk 0:00:36.2]} 43... Nd3 {[%clk 0:00:46.4]} 44. Kg3 {[%clk 0:00:35.1]} 44...
Ra2 {[%clk 0:00:46.8]} 45. f3 {[%clk 0:00:20.7]} 45... Ne1 {[%clk 0:00:44.6]}
46. Rb6 {[%clk 0:00:16.4]} 46... Rxg2+ {[%clk 0:00:38]} 47. Kf4 {[%clk
0:00:15.9]} 47... Rg1 {[%clk 0:00:35.9]} 48. Rxe6 {[%clk 0:00:13.8]} 48... Nd3+
{[%clk 0:00:36.1]} 49. Ke4 {[%clk 0:00:12.4]} 49... Nc5+ {[%clk 0:00:24.8]} 50.
Kd5 {[%clk 0:00:12]} 50... Nxe6 {[%clk 0:00:24.3]} 51. Kxe6 {[%clk 0:00:12.9]}
51... Rg3 {[%clk 0:00:24.1]} 52. e4 {[%clk 0:00:12.7]} 52... Rxf3 {[%clk
0:00:22.9]} 53. e5 {[%clk 0:00:12.5]} 53... Re3 {[%clk 0:00:22.8]} 54. Kd5
{[%clk 0:00:11.8]} 54... g5 {[%clk 0:00:22.2]} 55. hxg5 {[%clk 0:00:11.6]} 55...
h4 {[%clk 0:00:22.9]} 56. Kd4 {[%clk 0:00:11.7]} 56... Re1 {[%clk 0:00:23.5]}
57. Kd5 {[%clk 0:00:11.6]} 57... h3 {[%clk 0:00:24.2]} 58. Ke6 {[%clk 0:00:12]}
58... h2 {[%clk 0:00:24.9]} 59. g6 {[%clk 0:00:12.4]} 59... h1=Q {[%clk
0:00:19.5]} 60. Kxe7 {[%clk 0:00:05]} 60... Kxg6 {[%clk 0:00:20.1]} 61. e6
{[%clk 0:00:04.5]} 61... Qd5 {[%clk 0:00:19.3]} 62. Kf8 {[%clk 0:00:04.2]} 62...
Rxe6 {[%clk 0:00:19.4]} 0-1

[Event "Late-Titled-Tuesday-Blitz-December-26-2023"]
[Site "Chess.com"]
[Date "2023.12.26"]
[Round "8"]
[White "alertakobra"]
[Black "Felix-Rose"]
[Result "1-0"]
[WhiteElo "2441"]
[BlackElo "2240"]
[TimeControl "180+1"]
[EndTime "15:28:35 PST"]
[Termination "alertakobra won by checkmate"]

1. e4 {[%clk 0:03:00.9]} 1... e5 {[%clk 0:02:59.6]} 2. Nf3 {[%clk 0:03:00.6]}
2... Nc6 {[%clk 0:03:00]} 3. d4 {[%clk 0:03:00.8]} 3... exd4 {[%clk 0:03:00.4]}
4. Nxd4 {[%clk 0:03:01.7]} 4... Nf6 {[%clk 0:03:00.8]} 5. Nxc6 {[%clk
0:03:01.1]} 5... bxc6 {[%clk 0:03:01.7]} 6. e5 {[%clk 0:03:01.5]} 6... Qe7
{[%clk 0:03:01.9]} 7. Qe2 {[%clk 0:03:01.8]} 7... Nd5 {[%clk 0:03:01.6]} 8. h4
{[%clk 0:03:01.9]} 8... Qe6 {[%clk 0:03:01]} 9. Nd2 {[%clk 0:02:39.2]} 9... a5
{[%clk 0:03:00.6]} 10. g3 {[%clk 0:02:31.1]} 10... Ba6 {[%clk 0:02:57.3]} 11. c4
{[%clk 0:02:31.3]} 11... Nb6 {[%clk 0:02:56.7]} 12. b3 {[%clk 0:02:25.4]} 12...
Bb4 {[%clk 0:02:54]} 13. Bh3 {[%clk 0:02:22.3]} 13... Qe7 {[%clk 0:02:54.2]} 14.
O-O {[%clk 0:02:22.4]} 14... Bc3 {[%clk 0:02:32.2]} 15. Rb1 {[%clk 0:02:11.3]}
15... O-O {[%clk 0:02:30.9]} 16. Nf3 {[%clk 0:01:15.2]} 16... f6 {[%clk
0:02:20.8]} 17. Bb2 {[%clk 0:00:53.1]} 17... Bxb2 {[%clk 0:02:16.3]} 18. Qxb2
{[%clk 0:00:52.9]} 18... d5 {[%clk 0:02:03]} 19. exd6 {[%clk 0:00:49.2]} 19...
cxd6 {[%clk 0:01:43.7]} 20. Rfe1 {[%clk 0:00:48.8]} 20... Qc7 {[%clk 0:01:43.5]}
21. Nd4 {[%clk 0:00:47.5]} 21... Rfe8 {[%clk 0:01:41.4]} 22. Bg2 {[%clk
0:00:43.7]} 22... d5 {[%clk 0:01:39.2]} 23. c5 {[%clk 0:00:38.7]} 23... Nd7
{[%clk 0:01:34.7]} 24. Qc3 {[%clk 0:00:32.9]} 24... Re5 {[%clk 0:01:11.9]} 25.
f4 {[%clk 0:00:28]} 25... Rxe1+ {[%clk 0:01:07.6]} 26. Rxe1 {[%clk 0:00:28.9]}
26... Qa7 {[%clk 0:00:48.1]} 27. Nxc6 {[%clk 0:00:28.7]} 27... Qxc5+ {[%clk
0:00:48.2]} 28. Qxc5 {[%clk 0:00:28.6]} 28... Nxc5 {[%clk 0:00:49]} 29. Nxa5
{[%clk 0:00:22.3]} 29... Rd8 {[%clk 0:00:39.6]} 30. Nc6 {[%clk 0:00:21.3]} 30...
Rd6 {[%clk 0:00:39]} 31. Bxd5+ {[%clk 0:00:19.4]} 31... Kf8 {[%clk 0:00:39.4]}
32. Bf3 {[%clk 0:00:16.4]} 32... Bb7 {[%clk 0:00:38.8]} 33. b4 {[%clk
0:00:13.6]} 33... Nd3 {[%clk 0:00:36.3]} 34. Rd1 {[%clk 0:00:13.9]} 34... Bxc6
{[%clk 0:00:32.6]} 35. Bxc6 {[%clk 0:00:13.4]} 35... Ke7 {[%clk 0:00:29]} 36.
Be4 {[%clk 0:00:12.1]} 36... Nxb4 {[%clk 0:00:28.2]} 37. Rxd6 {[%clk 0:00:11.8]}
37... Kxd6 {[%clk 0:00:28.7]} 38. a3 {[%clk 0:00:12]} 38... Na6 {[%clk
0:00:24.4]} 39. Kf2 {[%clk 0:00:12.5]} 39... g6 {[%clk 0:00:23.3]} 40. Ke3
{[%clk 0:00:12.6]} 40... f5 {[%clk 0:00:23.4]} 41. Bd3 {[%clk 0:00:09.2]} 41...
Nc5 {[%clk 0:00:23.2]} 42. Kd4 {[%clk 0:00:09.6]} 42... Ne6+ {[%clk 0:00:20.9]}
43. Kc4 {[%clk 0:00:08.4]} 43... h6 {[%clk 0:00:21.4]} 44. a4 {[%clk 0:00:07.8]}
44... g5 {[%clk 0:00:20.9]} 45. fxg5 {[%clk 0:00:07.8]} 45... hxg5 {[%clk
0:00:21.8]} 46. Bxf5 {[%clk 0:00:07.7]} 46... gxh4 {[%clk 0:00:22.5]} 47. gxh4
{[%clk 0:00:08]} 47... Ng7 {[%clk 0:00:21.7]} 48. Bg6 {[%clk 0:00:07.9]} 48...
Ne6 {[%clk 0:00:21.3]} 49. h5 {[%clk 0:00:08]} 49... Nf8 {[%clk 0:00:21.2]} 50.
Be4 {[%clk 0:00:07]} 50... Kc7 {[%clk 0:00:21.2]} 51. h6 {[%clk 0:00:06.4]}
51... Nd7 {[%clk 0:00:20.4]} 52. h7 {[%clk 0:00:05.6]} 52... Ne5+ {[%clk
0:00:20.6]} 53. Kd4 {[%clk 0:00:04.2]} 53... Nf7 {[%clk 0:00:21.5]} 54. Bd5
{[%clk 0:00:03.3]} 54... Nh8 {[%clk 0:00:21.8]} 55. Kc5 {[%clk 0:00:03]} 55...
Kb8 {[%clk 0:00:21.6]} 56. a5 {[%clk 0:00:03.2]} 56... Ka7 {[%clk 0:00:22.2]}
57. Kb5 {[%clk 0:00:02.9]} 57... Ng6 {[%clk 0:00:22.3]} 58. a6 {[%clk
0:00:02.7]} 58... Nh8 {[%clk 0:00:22]} 59. Bc6 {[%clk 0:00:02.2]} 59... Ng6
{[%clk 0:00:22.2]} 60. Bd7 {[%clk 0:00:02.5]} 60... Nh8 {[%clk 0:00:22.3]} 61.
Be8 {[%clk 0:00:02.9]} 61... Kb8 {[%clk 0:00:21]} 62. Kb6 {[%clk 0:00:03.1]}
62... Ka8 {[%clk 0:00:21.6]} 63. a7 {[%clk 0:00:01.9]} 63... Nf7 {[%clk
0:00:17.6]} 64. Bc6# {[%clk 0:00:02.8]} 1-0

[Event "Late-Titled-Tuesday-Blitz-December-26-2023"]
[Site "Chess.com"]
[Date "2023.12.26"]
[Round "8"]
[White "Byniolus"]
[Black "ahkashefi2800"]
[Result "1-0"]
[WhiteElo "2816"]
[BlackElo "2616"]
[TimeControl "180+1"]
[EndTime "15:28:41 PST"]
[Termination "Byniolus won by resignation"]

1. d4 {[%clk 0:03:00.9]} 1... d5 {[%clk 0:03:00.1]} 2. Bf4 {[%clk 0:03:00.5]}
2... Nf6 {[%clk 0:02:58.8]} 3. e3 {[%clk 0:03:00.7]} 3... Bf5 {[%clk 0:02:58.3]}
4. c4 {[%clk 0:03:00.5]} 4... c6 {[%clk 0:02:58.4]} 5. Nc3 {[%clk 0:03:00.5]}
5... e6 {[%clk 0:02:58]} 6. Qb3 {[%clk 0:02:59.2]} 6... Qb6 {[%clk 0:02:56.5]}
7. c5 {[%clk 0:02:59.7]} 7... Qxb3 {[%clk 0:02:56.9]} 8. axb3 {[%clk 0:03:00.6]}
8... a6 {[%clk 0:02:57.3]} 9. b4 {[%clk 0:03:00.8]} 9... Nbd7 {[%clk 0:02:57.6]}
10. b5 {[%clk 0:03:00.7]} 10... cxb5 {[%clk 0:02:50.9]} 11. Bxb5 {[%clk
0:03:00.2]} 11... Be7 {[%clk 0:02:45.7]} 12. Nf3 {[%clk 0:02:48.4]} 12... O-O
{[%clk 0:02:45.4]} 13. Ba4 {[%clk 0:02:43.8]} 13... b5 {[%clk 0:02:39.1]} 14.
Bd1 {[%clk 0:02:31.1]} 14... Nh5 {[%clk 0:02:38.6]} 15. Be5 {[%clk 0:02:16.5]}
15... Nxe5 {[%clk 0:02:34.2]} 16. Nxe5 {[%clk 0:02:17.4]} 16... Nf6 {[%clk
0:02:33.7]} 17. g4 {[%clk 0:02:15]} 17... Be4 {[%clk 0:02:23.2]} 18. f3 {[%clk
0:02:10.8]} 18... Bg6 {[%clk 0:02:23.3]} 19. h4 {[%clk 0:01:57.5]} 19... h6
{[%clk 0:02:09.8]} 20. Nxg6 {[%clk 0:01:42.8]} 20... fxg6 {[%clk 0:02:09.7]} 21.
Bc2 {[%clk 0:01:38.9]} 21... Nd7 {[%clk 0:02:00.9]} 22. Ke2 {[%clk 0:01:26.6]}
22... g5 {[%clk 0:02:00.9]} 23. hxg5 {[%clk 0:01:20.5]} 23... Bxg5 {[%clk
0:02:01.2]} 24. f4 {[%clk 0:01:19.4]} 24... Bf6 {[%clk 0:01:55]} 25. b4 {[%clk
0:00:58]} 25... Rfc8 {[%clk 0:00:51.6]} 26. Kd2 {[%clk 0:00:53.9]} 26... Rc6
{[%clk 0:00:30.3]} 27. Nxb5 {[%clk 0:00:28.4]} 27... Rb8 {[%clk 0:00:28.5]} 28.
Nc3 {[%clk 0:00:23]} 28... Rxb4 {[%clk 0:00:28.5]} 29. Rhb1 {[%clk 0:00:19.6]}
29... Rc4 {[%clk 0:00:27.7]} 30. Ra3 {[%clk 0:00:08.7]} 30... Nxc5 {[%clk
0:00:14.2]} 31. dxc5 {[%clk 0:00:07.9]} 31... R6xc5 {[%clk 0:00:14]} 32. Rbb3
{[%clk 0:00:05.4]} 32... d4 {[%clk 0:00:08]} 33. exd4 {[%clk 0:00:06.3]} 33...
Bxd4 {[%clk 0:00:08.3]} 34. Bd3 {[%clk 0:00:04.5]} 34... Rxc3 {[%clk 0:00:01.9]}
35. Rxc3 {[%clk 0:00:05.4]} 35... Bxc3+ {[%clk 0:00:01.3]} 36. Rxc3 {[%clk
0:00:06.3]} 36... Rxc3 {[%clk 0:00:01.8]} 37. Kxc3 {[%clk 0:00:07.2]} 37... a5
{[%clk 0:00:02.4]} 38. Kd4 {[%clk 0:00:05.7]} 38... Kf7 {[%clk 0:00:02.6]} 39.
Ke5 {[%clk 0:00:05.7]} 39... a4 {[%clk 0:00:02.5]} 40. Bc4 {[%clk 0:00:05.9]}
40... g6 {[%clk 0:00:02.6]} 41. Bxe6+ {[%clk 0:00:05.9]} 41... Ke7 {[%clk
0:00:02.9]} 42. Bd5 {[%clk 0:00:04.1]} 42... a3 {[%clk 0:00:02.9]} 43. Ba2
{[%clk 0:00:04]} 43... h5 {[%clk 0:00:02.6]} 44. gxh5 {[%clk 0:00:03.2]} 44...
gxh5 {[%clk 0:00:03]} 45. f5 {[%clk 0:00:03.5]} 45... h4 {[%clk 0:00:03.2]} 46.
f6+ {[%clk 0:00:04.1]} 46... Kf8 {[%clk 0:00:03.1]} 47. Kf4 {[%clk 0:00:04.6]}
47... Ke8 {[%clk 0:00:02.1]} 48. Kg4 {[%clk 0:00:05]} 48... h3 {[%clk
0:00:02.2]} 49. Kxh3 {[%clk 0:00:05.4]} 49... Kd7 {[%clk 0:00:02.6]} 50. Kg4
{[%clk 0:00:06.1]} 50... Kd6 {[%clk 0:00:03]} 51. Kg5 {[%clk 0:00:06.5]} 51...
Kd7 {[%clk 0:00:03]} 52. Kg6 {[%clk 0:00:06.8]} 52... Ke8 {[%clk 0:00:03.7]} 53.
Kg7 {[%clk 0:00:06.8]} 53... Kd7 {[%clk 0:00:03.1]} 54. f7 {[%clk 0:00:07.2]}
54... Ke7 {[%clk 0:00:01.9]} 55. f8=Q+ {[%clk 0:00:07.3]} 55... Kd7 {[%clk
0:00:02.6]} 56. Qxa3 {[%clk 0:00:07.4]} 56... Kc7 {[%clk 0:00:02.4]} 57. Kf6
{[%clk 0:00:07.2]} 57... Kc6 {[%clk 0:00:01.7]} 58. Ke6 {[%clk 0:00:06.6]} 58...
Kb5 {[%clk 0:00:01.7]} 59. Qb3+ {[%clk 0:00:06.7]} 59... Kc5 {[%clk 0:00:01.9]}
60. Qc3+ {[%clk 0:00:06.8]} 60... Kb5 {[%clk 0:00:02.3]} 61. Kd5 {[%clk
0:00:06.3]} 61... Ka4 {[%clk 0:00:02.5]} 62. Qb3+ {[%clk 0:00:06.5]} 62... Ka5
{[%clk 0:00:02.8]} 63. Kc6 {[%clk 0:00:06.8]} 1-0